bitfinex/quotes_SOLUSD_20250930
["timestamp","ask_amount","ask_price","bid_price","bid_amount"]
[1759266644640,30.86688969,210.7,210.67,33.48]
[1759266645938,13.59559401,210.68,210.62,79.79]
[1759266646120,0.66,210.67,210.63,33.48]
[1759266646321,0.66,210.66,210.63,33.48]
[1759266646529,0.66,210.65,210.63,33.48]
[1759266646931,0.66,210.64,210.63,33.48]
[1759266647129,14.53991715,210.64,210.63,33.48]
[1759266648034,19.28735353,210.64,210.63,33.48]
[1759266648618,18.62735353,210.64,210.63,33.48]
[1759266650142,4.74743638,210.64,210.63,34.17]
[1759266654320,13.59559401,210.68,210.63,34.17]
[1759266654541,4.74653502,210.68,210.64,0.66]
[1759266655453,13.59559401,210.7,210.64,0.66]
[1759266656453,4.74630974,210.69,210.64,0.66]
[1759266661151,4.74630974,210.69,210.63,33.48]
[1759266661343,4.74630974,210.69,210.65,0.66]
[1759266661525,4.74630974,210.69,210.63,33.48]
[1759266661732,4.74630974,210.69,210.64,0.66]
[1759266661943,4.74630974,210.69,210.65,0.66]
[1759266662637,5.42630974,210.69,210.65,0.66]
[1759266665440,14.27559401,210.68,210.63,112.58]
[1759266665644,13.59559401,210.66,210.63,33.48]
[1759266665853,0.68,210.65,210.63,33.48]
[1759266666361,0.68,210.64,210.63,33.48]
[1759266666547,0.68,210.64,210.59,37.02]
[1759266666746,0.68,210.63,210.6,33.48]
[1759266666949,4.74811262,210.61,210.6,33.48]
[1759266667356,5.42811262,210.61,210.59,37.02]
[1759266667543,4.74811262,210.61,210.6,33.48]
[1759266667750,18.34370663,210.61,210.6,33.48]
[1759266668155,19.02370663,210.61,210.6,33.48]
[1759266668874,19.30802977,210.61,210.6,33.48]
[1759266670738,0.28432314,210.6,210.59,37.02]
[1759266670943,0.96432314,210.6,210.59,37.02]
[1759266671145,5.71266122,210.6,210.59,37.02]
[1759266671967,5.71266122,210.6,210.59,70.5]
[1759266672164,4.74833808,210.6,210.59,70.5]
[1759266672760,13.59559401,210.62,210.59,70.5]
[1759266672761,18.34365624,210.62,210.59,71.16]
[1759266672966,21.48,210.65,210.6,0.66]
[1759266672967,13.59559401,210.65,210.6,0.66]
[1759266673151,13.59559401,210.65,210.61,33.48]
[1759266673347,16.61523854,210.65,210.62,0.66]
[1759266673553,17.29523854,210.65,210.63,33.48]
[1759266674402,16.61523854,210.65,210.63,33.48]
[1759266674870,14.55991715,210.64,210.63,33.48]
[1759266675171,19.30735353,210.64,210.63,33.48]
[1759266676157,21.07090628,210.64,210.63,33.48]
[1759266678162,19.30735353,210.64,210.63,33.48]
[1759266678476,21.07090628,210.64,210.63,33.48]
[1759266678650,20.39090628,210.64,210.63,33.48]
[1759266678980,21.09090628,210.64,210.63,33.48]
[1759266680158,20.39090628,210.64,210.63,33.48]
[1759266680561,18.34303039,210.64,210.63,34.16]
[1759266681170,18.34303039,210.64,210.63,33.48]
[1759266681356,20.10658314,210.64,210.63,33.48]
[1759266682070,21.09090628,210.64,210.63,33.48]
[1759266683178,0.28432314,210.63,210.59,37.7]
[1759266683377,13.59559401,210.61,210.6,33.48]
[1759266684179,20.39158252,210.61,210.6,33.48]
[1759266684674,20.39158252,210.61,210.59,37.02]
[1759266684675,0.28432314,210.6,210.59,37.02]
[1759266684875,15.6434699,210.6,210.59,70.5]
[1759266685075,13.87991715,210.6,210.59,70.5]
[1759266685279,15.6434699,210.6,210.59,70.5]
[1759266685584,15.6434699,210.6,210.56,37.04]
[1759266685585,0.28432314,210.58,210.56,37.04]
[1759266685773,13.87991715,210.56,210.54,37.04]
[1759266686079,20.39293558,210.55,210.54,37.04]
[1759266686262,21.38788674,210.55,210.54,37.04]
[1759266686668,22.10788674,210.55,210.54,70.52]
[1759266686981,13.87991715,210.54,210.5,37.04]
[1759266687168,2.75850391,210.52,210.5,37.04]
[1759266687485,2.75850391,210.52,210.5,37.69]
[1759266688074,4.75036815,210.51,210.5,37.69]
[1759266688281,4.75036815,210.51,210.5,71.17]
[1759266689282,18.34596216,210.51,210.5,70.52]
[1759266691164,18.6302853,210.51,210.5,70.52]
[1759266692368,21.38878921,210.51,210.5,70.52]
[1759266693076,22.10878921,210.51,210.5,70.52]
[1759266693465,21.38878921,210.51,210.5,70.52]
[1759266694273,21.38878921,210.51,210.45,0.2]
[1759266694274,13.59559401,210.48,210.45,0.2]
[1759266694470,13.59559401,210.48,210.45,0.85]
[1759266694659,13.59559401,210.48,210.46,0.65]
[1759266695486,13.59559401,210.48,210.47,70.52]
[1759266696368,18.34663923,210.48,210.47,71.17]
[1759266697076,18.34663923,210.48,210.47,70.52]
[1759266697677,22.10946628,210.48,210.47,70.52]
[1759266697989,0.28432314,210.47,210.45,0.2]
[1759266698194,37.15409792,210.46,210.45,0.2]
[1759266698377,41.90559464,210.46,210.45,0.2]
[1759266698782,42.62559464,210.46,210.45,0.2]
[1759266699184,0.28432314,210.45,210.44,37.04]
[1759266699401,0.28432314,210.45,210.44,70.52]
[1759266699889,5.03604563,210.45,210.44,70.52]
[1759266701391,19.99999999,210.51,210.44,71.17]
[1759266701392,16.62665677,210.51,210.44,71.17]
[1759266701571,13.59559401,210.5,210.45,0.65]
[1759266701771,13.59559401,210.5,210.46,33.48]
[1759266701987,4.75081951,210.49,210.47,0.65]
[1759266702182,4.75081951,210.49,210.48,33.48]
[1759266702396,4.75081951,210.49,210.48,34.13]
[1759266703493,18.34641352,210.49,210.48,33.48]
[1759266703689,18.63073666,210.49,210.48,33.48]
[1759266704981,21.38924057,210.49,210.48,33.48]
[1759266705580,22.10924057,210.49,210.48,33.48]
[1759266705792,19.35073666,210.49,210.48,33.48]
[1759266706092,22.10924057,210.49,210.48,33.48]
[1759266707469,21.38924057,210.49,210.48,33.48]
[1759266709896,18.63073666,210.49,210.48,33.48]
[1759266711790,18.63073666,210.49,210.48,34.13]
[1759266711990,18.63073666,210.49,210.48,33.48]
[1759266713298,18.34641352,210.49,210.48,34.15]
[1759266713605,4.75081951,210.49,210.48,34.15]
[1759266714794,13.59559401,210.5,210.48,34.15]
[1759266715004,13.59559401,210.5,210.49,0.67]
[1759266716305,18.34618783,210.5,210.49,0.67]
[1759266717191,4.75059382,210.5,210.49,0.67]
[1759266718390,11.87628862,210.51,210.49,0.67]
[1759266719432,0.28432314,210.49,210.48,33.48]
[1759266719708,16.63842106,210.49,210.48,33.48]
[1759266720300,4.75127096,210.47,210.46,0.67]
[1759266720496,13.59559401,210.46,210.44,37.04]
[1759266720682,2.75850391,210.45,210.44,37.04]
[1759266720883,2.75850391,210.45,210.44,70.52]
[1759266721079,16.63842106,210.45,210.44,70.52]
[1759266721384,13.87991715,210.44,210.42,37.06]
[1759266721588,16.63842106,210.43,210.42,37.06]
[1759266722401,21.39059517,210.43,210.42,37.06]
[1759266722607,0.28432314,210.42,210.41,0.2]
[1759266722788,13.59559401,210.41,210.4,37.26]
[1759266722989,0.14216157,210.4,210.38,0.2]
[1759266723180,16.63842106,210.39,210.38,1e-08]
[1759266723380,13.87991715,210.38,210.36,0.2]
[1759266723586,37.43842106,210.37,210.36,0.2]
[1759266723792,38.09842106,210.37,210.36,0.2]
[1759266723993,38.09842106,210.37,210.36,3.74]
[1759266724190,35.33991715,210.37,210.36,3.74]
[1759266724504,0.28432314,210.35,210.3,0.67]
[1759266724691,16.63842106,210.34,210.3,0.67]
[1759266725497,16.63842106,210.34,210.32,37.06]
[1759266725498,13.87991715,210.33,210.32,37.06]
[1759266725703,14.53991715,210.33,210.32,37.06]
[1759266725899,14.53991715,210.33,210.32,70.54]
[1759266726410,13.87991715,210.29,210.28,37.26]
[1759266726611,22.05375892,210.29,210.28,37.26]
[1759266726931,18.63525501,210.29,210.28,37.26]
[1759266727112,22.05375892,210.29,210.28,37.26]
[1759266727712,18.63525501,210.29,210.28,37.26]
[1759266727896,21.39375892,210.29,210.28,70.74]
[1759266728296,21.39375892,210.29,210.27,0.2]
[1759266728297,22.05375892,210.29,210.27,0.2]
[1759266729009,17.01409792,210.28,210.27,0.2]
[1759266729209,13.59559401,210.27,210.25,37.26]
[1759266729407,16.35409792,210.26,210.25,37.26]
[1759266730011,0.28432314,210.25,210.24,0.2]
[1759266730210,17.29842106,210.25,210.23,0.2]
[1759266730511,16.35409792,210.24,210.23,0.2]
[1759266730689,21.11056671,210.24,210.23,1e-08]
[1759266730895,41.91056671,210.24,210.23,1e-08]
[1759266731310,42.19488985,210.24,210.23,1e-08]
[1759266731608,42.85488985,210.24,210.23,1e-08]
[1759266731794,42.85488985,210.24,210.15,0.2]
[1759266731795,13.59559401,210.2,210.19,0.1158]
[1759266732000,16.35409792,210.2,210.19,1e-08]
[1759266732196,20.8,210.16,210.15,0.2]
[1759266732510,37.15409792,210.16,210.15,0.2]
[1759266732708,42.85670046,210.16,210.15,0.2]
[1759266732900,42.19670046,210.16,210.15,0.2]
[1759266733302,42.85670046,210.16,210.15,1e-08]
[1759266734307,13.87991715,210.15,210.14,1e-08]
[1759266734620,13.87991715,210.13,210.09,0.67]
[1759266734826,16.35409792,210.1,210.09,0.67]
[1759266735003,2.75850391,210.1,210.08,37.08]
[1759266735205,2.75850391,210.09,210.08,37.08]
[1759266735405,16.35409792,210.09,210.08,37.08]
[1759266735601,16.35409792,210.09,210.08,37.75]
[1759266735914,16.35409792,210.09,210.08,37.08]
[1759266736321,16.63842106,210.09,210.08,37.08]
[1759266736516,13.87991715,210.08,210.06,0.2]
[1759266736716,21.39873904,210.07,210.06,0.2]
[1759266736926,21.39873904,210.07,210.06,33.76]
[1759266737514,18.64023513,210.07,210.06,33.76]
[1759266737702,21.39873904,210.07,210.06,33.76]
[1759266738404,25.01203866,210.07,210.06,33.76]
[1759266739739,13.87991715,210.06,210.04,37.1]
[1759266740039,13.87991715,210.06,210.02,0.72]
[1759266740040,19.96739754,210.05,210.02,37.1]
[1759266740239,13.87991715,210.06,210.02,37.1]
[1759266740240,19.96739754,210.03,210.02,37.1]
[1759266740934,24.72862212,210.03,210.02,37.1]
[1759266741114,11.89940232,210.1,210.02,37.82]
[1759266741315,13.59559401,210.07,210.03,0.72]
[1759266741732,19.96739754,210.07,210.03,0.72]
[1759266742038,0.71,210.17,210.04,33.56]
[1759266742209,13.59559401,210.11,210.05,0.72]
[1759266742415,19.96739754,210.11,210.05,0.72]
[1759266743029,4.75963826,210.1,210.05,0.72]
[1759266744443,11.13144179,210.1,210.05,0.72]
[1759266744745,6.37180353,210.07,210.06,0.66]
[1759266745111,11.13212151,210.07,210.06,0.66]
[1759266745826,4.76031798,210.07,210.06,0.66]
[1759266746025,11.13212151,210.07,210.06,0.66]
[1759266746359,9.06954016,210.07,210.06,0.66]
[1759266746513,4.76009139,210.08,210.06,0.66]
[1759266746837,18.3556854,210.08,210.07,33.58]
[1759266748055,22.66490758,210.08,210.07,33.58]
[1759266748552,22.66490758,210.08,210.07,34.24]
[1759266749029,4.75975238,210.1,210.07,34.24]
[1759266749345,4.30922218,210.14,210.08,0.66]
[1759266749646,13.59559401,210.13,210.08,0.66]
[1759266750220,4.30922218,210.13,210.08,0.66]
[1759266750526,13.59559401,210.13,210.08,0.66]
[1759266750735,4.75904294,210.13,210.08,0.66]
[1759266751140,4.758053,210.17,210.08,5.42002947]
[1759266751344,4.75785511,210.18,210.09,0.66]
[1759266752644,4.30922218,210.19,210.09,0.66]
[1759266752645,4.75761065,210.19,210.1,4.75963826]
[1759266752857,4.75761065,210.19,210.11,34.24]
[1759266753150,4.75761065,210.19,210.12,0.66]
[1759266753828,4.30922218,210.18,210.12,0.66]
[1759266754546,4.75761065,210.19,210.12,0.66]
[1759266754751,4.30922218,210.18,210.12,0.66]
[1759266755544,4.30922218,210.17,210.12,0.66]
[1759266755724,4.75850582,210.15,210.12,0.66]
[1759266755925,4.75850582,210.15,210.13,0.66]
[1759266757951,4.75850582,210.15,210.07,20.8]
[1759266757952,18.58481619,210.14,210.09,0.66]
[1759266758140,4.30922218,210.12,210.1,33.56]
[1759266758450,4.30922218,210.12,210.11,37.12]
[1759266758855,18.58481619,210.12,210.11,37.12]
[1759266759355,23.34400141,210.12,210.11,70.68]
[1759266760952,22.66400141,210.12,210.11,70.68]
[1759266761160,34.56037914,210.14,210.11,71.34]
[1759266761458,4.30922218,210.12,210.11,70.68]
[1759266762454,34.39559401,210.11,210.07,37.12]
[1759266762655,17.90481619,210.08,210.07,37.12]
[1759266763239,22.66490758,210.08,210.07,37.12]
[1759266763638,22.66490758,210.08,210.07,70.7]
[1759266764750,9.06931357,210.08,210.07,71.36]
[1759266764950,4.76009139,210.08,210.07,71.36]
[1759266765133,4.75984057,210.1,210.07,71.36]
[1759266765336,4.75984057,210.1,210.08,0.66]
[1759266765337,4.30922218,210.1,210.08,0.66]
[1759266765841,20.96716325,210.11,210.09,0.66]
[1759266766146,4.75941173,210.11,210.1,33.58]
[1759266766353,4.75941173,210.11,210.1,34.24]
[1759266767941,9.06837511,210.13,210.1,34.24]
[1759266768146,9.06837511,210.13,210.11,0.66]
[1759266769259,20.96577195,210.13,210.1,33.58]
[1759266769464,4.30922218,210.12,210.11,0.66]
[1759266769763,16.65654977,210.13,210.11,0.66]
[1759266769967,4.30922218,210.12,210.11,0.66]
[1759266770343,4.75915293,210.13,210.11,0.66]
[1759266770869,4.75915293,210.13,210.12,0.66]
[1759266772071,4.75782662,210.18,210.12,0.66]
[1759266772376,4.30922218,210.16,210.13,33.58]
[1759266772575,4.30922218,210.16,210.14,0.66]
[1759266773063,13.59559401,210.17,210.15,0.67]
[1759266773264,9.0670488,210.18,210.16,34.25]
[1759266773471,9.06678565,210.2,210.17,34.25]
[1759266773877,4.30922218,210.19,210.17,34.25]
[1759266774451,13.59559401,210.15,210.08,0.67]
[1759266774654,4.30922218,210.09,210.08,0.67]
[1759266774862,4.30922218,210.09,210.08,34.25]
[1759266775273,4.30922218,210.09,210.08,33.58]
[1759266776272,9.06908699,210.09,210.08,33.58]
[1759266777881,4.75986481,210.09,210.08,33.58]
[1759266778278,18.35523227,210.1,210.08,33.58]
[1759266778593,17.90481619,210.09,210.08,33.58]
[1759266780257,22.664681,210.09,210.08,33.58]
[1759266781980,23.384681,210.09,210.08,33.58]
[1759266782183,13.59559401,210.08,210.04,37.12]
[1759266782372,18.18913933,210.05,210.04,37.12]
[1759266782685,13.59559401,210.04,210.01,0.2]
[1759266782882,0.72,210.08,210.02,0.67]
[1759266783193,4.30922218,210.04,210.02,0.67]
[1759266783484,14.31559401,210.08,210.02,0.67]
[1759266783485,4.30922218,210.03,210.02,0.67]
[1759266783676,4.30922218,210.03,210.02,34.45]
[1759266784063,9.07044676,210.03,210.02,34.45]
[1759266784980,4.30922218,210.06,210.02,34.45]
[1759266785278,4.30922218,210.06,210.03,0.67]
[1759266785475,4.30922218,210.06,210.01,0.2]
[1759266785476,4.30922218,210.06,210.04,34.45]
[1759266785673,4.30922218,210.05,210.04,33.78]
[1759266786177,4.76077124,210.05,210.04,33.78]
[1759266787589,9.06999342,210.05,210.04,33.78]
[1759266788080,4.76077124,210.05,210.04,33.78]
[1759266792086,11.89947275,210.1,210.04,34.45]
[1759266792270,11.89947275,210.1,210.05,0.67]
[1759266792469,11.89947275,210.1,210.06,0.67]
[1759266792672,4.76004406,210.09,210.07,34.41]
[1759266792879,9.06926624,210.09,210.07,33.74]
[1759266793072,13.59559401,210.08,210.07,33.74]
[1759266793277,13.59559401,210.08,210.07,70.86]
[1759266793480,14.31559401,210.08,210.07,70.86]
[1759266793873,19.0756854,210.08,210.07,70.86]
[1759266794268,20.84909513,210.08,210.07,70.86]
[1759266795879,20.84909513,210.08,210.01,0.2]
[1759266795880,56.54978057,210.08,210.02,37.12]
[1759266796073,1.77340973,210.03,210.02,37.12]
[1759266796468,15.36900374,210.03,210.02,37.12]
[1759266796992,15.36900374,210.03,210.02,70.84]
[1759266797890,40.93022832,210.03,210.02,70.84]
[1759266798087,20.13022832,210.03,210.02,70.84]
[1759266798390,20.85022832,210.03,210.02,70.84]
[1759266798895,21.13455146,210.03,210.02,70.84]
[1759266799073,13.59559401,210.02,210.01,1e-08]
[1759266799475,35.11559401,210.02,210.01,1e-08]
[1759266799881,39.8770453,210.02,210.01,1e-08]
[1759266800071,39.1570453,210.02,210.01,1e-08]
[1759266800276,40.93045503,210.02,210.01,33.74000001]
[1759266801574,39.1570453,210.02,210.01,33.74000001]
[1759266802475,40.93045503,210.02,210.01,33.74000001]
[1759266803907,39.1570453,210.02,210.01,34.44000001]
[1759266804776,11.90218139,210.05,210.01,34.44000001]
[1759266804982,18.35659191,210.04,210.02,0.7]
[1759266805185,18.35659191,210.04,210.03,0.7]
[1759266806281,18.35659191,210.04,210.01,34.44000001]
[1759266806499,18.35659191,210.04,210.02,0.7]
[1759266807572,4.7609979,210.04,210.03,0.7]
[1759266807799,25.5609979,210.04,210.03,0.7]
[1759266809608,13.59559401,210.03,210.01,1e-08]
[1759266809908,13.59559401,210.03,210.02,33.7]
[1759266810217,16.36632348,210.03,210.02,33.7]
[1759266810392,17.03632348,210.03,210.02,33.7]
[1759266811307,21.79754806,210.03,210.02,33.7]
[1759266811788,18.35681859,210.03,210.02,34.4]
[1759266811984,18.35681859,210.03,210.02,33.7]
[1759266812495,19.02681859,210.03,210.02,33.7]
[1759266812705,18.35681859,210.03,210.02,33.7]
[1759266813091,19.02681859,210.03,210.02,33.7]
[1759266813285,19.02681859,210.03,210.01,1e-08]
[1759266813490,17.03632348,210.02,210.01,1e-08]
[1759266814613,34.39559401,209.98,209.96,37.12]
[1759266814814,37.16632348,209.98,209.96,37.12]
[1759266815596,18.35817914,209.97,209.96,37.12]
[1759266815799,18.35817914,209.97,209.96,70.82]
[1759266817011,18.35817914,209.97,209.96,71.52]
[1759266817686,18.35817914,209.97,209.96,70.82]
[1759266819708,21.12890861,209.97,209.96,70.82]
[1759266820090,18.35817914,209.97,209.96,70.82]
[1759266820601,21.79890861,209.97,209.96,37.12]
[1759266820789,21.79890861,209.97,209.96,70.8]
[1759266821109,0.28432314,209.95,209.92,37.14]
[1759266821283,16.36632348,209.93,209.92,37.14]
[1759266821488,18.3590866,209.93,209.92,37.84]
[1759266821806,20.8,209.95,209.92,37.84]
[1759266821998,20.8,209.95,209.93,0.7]
[1759266822304,20.8,209.95,209.94,33.7]
[1759266822509,20.8,209.95,209.94,34.4]
[1759266823213,34.39559401,209.95,209.94,33.7]
[1759266823599,39.15863282,209.95,209.94,34.4]
[1759266824795,4.76295293,209.96,209.94,34.4]
[1759266824984,4.76295293,209.96,209.95,0.7]
[1759266825190,4.76295293,209.96,209.94,33.7]
[1759266825509,7.5336824,209.96,209.94,33.7]
[1759266825813,2.77072947,209.95,209.94,33.7]
[1759266826005,7.5336824,209.96,209.94,33.7]
[1759266826205,4.76295293,209.96,209.94,34.4]
[1759266827412,4.76295293,209.96,209.94,33.7]
[1759266827599,4.76295293,209.96,209.95,0.7]
[1759266828590,7.5336824,209.96,209.95,0.7]
[1759266829404,7.5336824,209.96,209.94,33.7]
[1759266829607,7.5336824,209.96,209.94,34.4]
[1759266831611,7.5336824,209.96,209.94,33.7]
[1759266832621,4.76295293,209.96,209.94,33.7]
[1759266833006,4.76295293,209.96,209.94,34.38]
[1759266833917,4.76295293,209.96,209.94,33.7]
[1759266834612,3.91554155,210.12,209.95,0.33]
[1759266834813,0.7,210.13,209.99,20.8]
[1759266835015,0.7,210.15,210.0,33.98]
[1759266835216,0.7,210.15,210.01,0.28432314]
[1759266835524,13.59559401,210.07,210.01,7.26962503]
[1759266835713,20.8,209.99,209.91,0.2]
[1759266835915,2.77072947,209.97,209.93,34.5]
[1759266836114,20.8,209.94,209.93,34.5]
[1759266836822,25.56326569,209.94,209.93,34.5]
[1759266840229,39.8588597,209.94,209.93,34.5]
[1759266841025,42.62958917,209.94,209.93,34.5]
[1759266841717,39.8588597,209.94,209.93,34.5]
[1759266842806,39.8588597,209.94,209.91,0.2]
[1759266842807,13.59559401,209.93,209.91,0.2]
[1759266843008,16.36632348,209.92,209.91,1e-08]
[1759266843212,34.39559401,209.88,209.86,37.14]
[1759266843428,21.83117791,209.87,209.86,37.14]
[1759266844023,21.83117791,209.87,209.86,71.56]
[1759266846504,19.06044844,209.87,209.86,71.56]
[1759266846725,21.83117791,209.87,209.86,71.56]
[1759266847807,21.83117791,209.87,209.86,34.42]
[1759266848529,21.83117791,209.87,209.85,0.2]
[1759266848530,13.59559401,209.86,209.85,1e-08]
[1759266848834,34.39559401,209.83,209.82,0.2]
[1759266849044,37.16632348,209.83,209.82,0.2]
[1759266849243,37.86632348,209.83,209.82,0.2]
[1759266849830,42.63208624,209.83,209.82,34.58]
[1759266852640,42.63208624,209.83,209.79,37.36]
[1759266852641,13.59559401,209.82,209.79,37.36]
[1759266852838,16.36632348,209.81,209.79,37.36]
[1759266853153,17.06632348,209.81,209.79,37.36]
[1759266853947,17.06632348,209.81,209.8,34.62]
[1759266854328,21.13254053,209.81,209.8,34.62]
[1759266854532,21.83254053,209.81,209.8,34.62]
[1759266855038,21.83254053,209.81,209.76,1e-08]
[1759266855039,13.59559401,209.77,209.76,1e-08]
[1759266855231,13.59559401,209.77,209.71,0.2]
[1759266855232,0.28432314,209.76,209.71,0.2]
[1759266855423,16.36632348,209.72,209.71,0.2]
[1759266855625,16.36632348,209.72,209.65,3.83539641]
[1759266855626,13.87991715,209.68,209.65,3.83539641]
[1759266855821,20.8,209.65,209.61,0.41]
[1759266856455,2.77072947,209.62,209.56,37.16]
[1759266856636,2.77072947,209.59,209.57,35.48]
[1759266856830,30.29103983,209.64,209.58,0.41]
[1759266857028,2.77072947,209.59,209.58,0.41]
[1759266859532,4.77074815,209.62,209.58,0.41]
[1759266859744,2.77072947,209.63,209.58,0.41]
[1759266859924,2.77072947,209.63,209.57,35.48]
[1759266859925,2.77072947,209.61,209.59,0.41]
[1759266860130,2.77072947,209.61,209.6,35.46]
[1759266860453,2.77072947,209.61,209.6,35.87]
[1759266861349,2.77072947,209.61,209.6,35.46]
[1759266861655,7.54149422,209.61,209.6,35.46]
[1759266861953,4.77076475,209.61,209.6,35.46]
[1759266862146,7.54149422,209.61,209.6,35.46]
[1759266862927,2.77072947,209.61,209.6,35.46]
[1759266864034,7.54149422,209.61,209.6,35.46]
[1759266864762,4.77076475,209.61,209.6,35.46]
[1759266864934,2.77072947,209.61,209.6,35.46]
[1759266865561,24.26072947,209.61,209.56,37.16]
[1759266865738,2.77072947,209.59,209.57,35.36]
[1759266866538,20.8,209.61,209.57,35.77]
[1759266866763,23.57072947,209.61,209.57,35.77]
[1759266867267,23.57072947,209.63,209.57,35.77]
[1759266867684,20.8,209.63,209.58,0.41]
[1759266867842,23.57072947,209.63,209.58,0.41]
[1759266868165,24.26072947,209.63,209.58,0.41]
[1759266868354,20.8,209.63,209.58,0.41]
[1759266868557,23.27043828,209.63,209.58,0.41]
[1759266868866,5.45988195,209.65,209.58,4.77141915]
[1759266869053,20.8,209.62,209.59,0.41]
[1759266869367,20.8,209.62,209.6,35.32]
[1759266869548,1.78043828,209.64,209.6,35.32]
[1759266869881,22.58043828,209.64,209.6,35.32]
[1759266870481,23.27043828,209.64,209.6,35.32]
[1759266871147,4.77030959,209.63,209.6,35.32]
[1759266871672,23.27043828,209.64,209.6,35.32]
[1759266872956,28.04068689,209.64,209.6,35.32]
[1759266873159,26.26024861,209.64,209.6,35.32]
[1759266873478,28.04068689,209.64,209.6,35.32]
[1759266874854,1.78043828,209.61,209.56,37.16]
[1759266875067,26.26024861,209.64,209.56,37.16]
[1759266875068,22.58043828,209.57,209.56,37.16]
[1759266875267,36.86603229,209.57,209.56,72.5]
[1759266875461,41.63770762,209.57,209.56,72.5]
[1759266876144,41.63770762,209.57,209.56,37.16]
[1759266876345,41.63770762,209.57,209.56,72.52]
[1759266879971,27.35211361,209.57,209.56,72.52]
[1759266880472,6.55211361,209.57,209.56,72.52]
[1759266880975,7.24211361,209.57,209.56,72.52]
[1759266881564,6.55211361,209.57,209.56,72.52]
[1759266883954,4.77167533,209.57,209.56,72.52]
[1759266884155,1.78043828,209.57,209.56,72.52]
[1759266884375,7.24211361,209.57,209.56,72.52]
[1759266884775,41.63770762,209.57,209.56,72.4]
[1759266884970,20.83770762,209.57,209.56,72.4]
[1759266889260,20.83770762,209.57,209.51,37.22]
[1759266889261,20.8,209.54,209.51,37.22]
[1759266889486,1.78043828,209.52,209.51,37.22]
[1759266890469,1.78043828,209.52,209.51,72.4]
[1759266891276,6.55325233,209.52,209.51,72.4]
[1759266892266,7.24325233,209.52,209.51,72.4]
[1759266893689,6.55325233,209.52,209.51,72.4]
[1759266893880,19.05840806,209.52,209.51,72.36]
[1759266894086,20.83884634,209.52,209.51,72.36]
[1759266895984,19.05840806,209.52,209.51,72.36]
[1759266896200,20.83884634,209.52,209.51,72.36]
[1759266897779,13.59559401,209.51,209.45,0.41]
[1759266897992,20.8,209.48,209.46,72.3]
[1759266898294,20.8,209.48,209.46,72.71]
[1759266898678,20.8,209.48,209.47,0.41]
[1759266898883,13.59559401,209.58,209.47,0.41]
[1759266899077,1.78043828,209.57,209.48,35.04]
[1759266899412,20.8,209.55,209.49,0.41]
[1759266899573,20.8,209.55,209.5,35.06]
[1759266899773,20.8,209.55,209.51,0.41]
[1759266899978,18.36710199,209.58,209.52,35.47]
[1759266900188,6.55167081,209.59,209.52,35.06]
[1759266900394,23.85041022,209.64,209.53,0.41]
[1759266900395,0.69,209.64,209.53,0.41]
[1759266900598,1.78043828,209.62,209.54,35.04]
[1759266900778,1.78043828,209.62,209.55,0.41]
[1759266900976,0.69,209.64,209.56,35.04]
[1759266900977,5.46010431,209.64,209.56,35.04]
[1759266901273,20.8,209.61,209.57,0.41]
[1759266901488,20.8,209.61,209.58,35.06]
[1759266901683,19.0552976,209.66,209.59,0.41]
[1759266901887,19.0552976,209.66,209.6,35.04]